[Event "Latvijas 2022. gada jauniešu čempionāta fināls"]
[Site "Riga, Latvia"]
[Date "2022.06.16"]
[Round "9.27"]
[White "Germanovs, Georgijs"]
[Black "Karasevics, Aleksandrs"]
[Result "1-0"]
[TimeControl "3600+30"]
[WhiteElo "1750"]
[BlackElo "1427"]

1. d4 {[%clk 00:56:47]} {[%emt 00:04:13]} d5 {[%clk 01:00:19]} {[%emt
00:00:41]} 2. Nf3 {[%clk 00:56:59]} {[%emt 00:00:19]} c5 {[%clk 01:00:33]}
{[%emt 00:00:16]} 3. c3 {[%clk 00:57:24]} {[%emt 00:00:04]} Nc6 {[%clk
01:00:55]} {[%emt 00:00:08]} 4. Bf4 {[%clk 00:57:45]} {[%emt 00:00:10]} Nf6
{[%clk 01:01:13]} {[%emt 00:00:11]} 5. e3 {[%clk 00:58:11]} {[%emt 00:00:05]}
Qb6 {[%clk 01:01:34]} {[%emt 00:00:09]} 6. Qc2 {[%clk 00:58:36]} {[%emt
00:00:05]} g6 {[%clk 01:01:55]} {[%emt 00:00:08]} 7. Nbd2 {[%clk 00:58:58]}
{[%emt 00:00:08]} Bg7 {[%clk 01:02:17]} {[%emt 00:00:07]} 8. Be2 {[%clk
00:58:27]} {[%emt 00:01:01]} O-O {[%clk 01:01:48]} {[%emt 00:00:59]} 9. O-O
{[%clk 00:58:51]} {[%emt 00:00:06]} Nh5 {[%clk 01:01:25]} {[%emt 00:00:54]} 10.
Bg5 {[%clk 00:58:32]} {[%emt 00:00:48]} Re8 {[%clk 01:01:16]} {[%emt 00:00:40]}
11. a4 {[%clk 00:58:38]} {[%emt 00:00:25]} Bf5 {[%clk 00:49:01]} {[%emt
00:12:44]} 12. dxc5 {[%clk 00:58:45]} {[%emt 00:00:23]} Qxc5 {[%clk 00:49:09]}
{[%emt 00:00:22]} 13. Qb3 {[%clk 00:58:54]} {[%emt 00:00:21]} Rab8 {[%clk
00:43:13]} {[%emt 00:06:27]} 14. Nd4 {[%clk 00:59:08]} {[%emt 00:00:15]} Nf6
{[%clk 00:42:19]} {[%emt 00:01:24]} 15. Nxf5 {[%clk 00:59:22]} {[%emt
00:00:16]} gxf5 {[%clk 00:42:42]} {[%emt 00:00:07]} 16. Bxf6 {[%clk 00:56:27]}
{[%emt 00:03:25]} Bxf6 {[%clk 00:43:02]} {[%emt 00:00:10]} 17. Nf3 {[%clk
00:56:15]} {[%emt 00:00:42]} e5 {[%clk 00:38:36]} {[%emt 00:04:57]} 18. Rfd1
{[%clk 00:56:08]} {[%emt 00:00:35]} Red8 {[%clk 00:37:39]} {[%emt 00:01:27]} 19.
Qb5 {[%clk 00:56:09]} {[%emt 00:00:29]} Qd6 {[%clk 00:31:20]} {[%emt 00:06:50]}
20. c4 {[%clk 00:55:41]} {[%emt 00:00:59]} d4 {[%clk 00:31:26]} {[%emt
00:00:23]} 21. e4 {[%clk 00:36:43]} {[%emt 00:19:28]} f4 {[%clk 00:20:27]}
{[%emt 00:11:30]} 22. c5 {[%clk 00:36:42]} {[%emt 00:00:32]} Qc7 {[%clk
00:17:11]} {[%emt 00:03:46]} 23. Qc4 {[%clk 00:35:50]} {[%emt 00:01:22]} a5
{[%clk 00:15:06]} {[%emt 00:02:35]} 24. Rac1 {[%clk 00:35:05]} {[%emt
00:01:15]} Nb4 {[%clk 00:14:49]} {[%emt 00:00:47]} 25. Ne1 {[%clk 00:35:24]}
{[%emt 00:00:11]} Qc6 {[%clk 00:14:03]} {[%emt 00:01:16]} 26. f3 {[%clk
00:32:06]} {[%emt 00:03:48]} Be7 {[%clk 00:08:23]} {[%emt 00:06:09]} 27. Nd3
{[%clk 00:30:51]} {[%emt 00:01:46]} Nxd3 {[%clk 00:08:33]} {[%emt 00:00:20]} 28.
Bxd3 {[%clk 00:31:15]} {[%emt 00:00:06]} b6 {[%clk 00:06:40]} {[%emt 00:02:23]}
29. cxb6 {[%clk 00:29:14]} {[%emt 00:02:31]} Qxc4 {[%clk 00:05:06]} {[%emt
00:02:05]} 30. Bxc4 {[%clk 00:29:35]} {[%emt 00:00:09]} Rxb6 {[%clk 00:05:27]}
{[%emt 00:00:09]} 31. b3 {[%clk 00:29:59]} {[%emt 00:00:05]} Bb4 {[%clk
00:04:54]} {[%emt 00:01:03]} 32. Kf1 {[%clk 00:30:16]} {[%emt 00:00:13]} Rbd6
{[%clk 00:04:48]} {[%emt 00:00:36]} 33. Ke2 {[%clk 00:30:21]} {[%emt 00:00:25]}
Kg7 {[%clk 00:05:01]} {[%emt 00:00:18]} 34. Kd3 {[%clk 00:30:28]} {[%emt
00:00:22]} h5 {[%clk 00:05:12]} {[%emt 00:00:19]} 35. g3 {[%clk 00:30:50]}
{[%emt 00:00:09]} fxg3 {[%clk 00:04:26]} {[%emt 00:01:16]} 36. hxg3 {[%clk
00:31:11]} {[%emt 00:00:08]} f6 {[%clk 00:04:34]} {[%emt 00:00:23]} 37. Rh1
{[%clk 00:31:32]} {[%emt 00:00:09]} Kg6 {[%clk 00:04:00]} {[%emt 00:01:04]} 38.
g4 {[%clk 00:31:22]} {[%emt 00:00:40]} hxg4 {[%clk 00:02:05]} {[%emt 00:02:25]}
39. Rcg1 {[%clk 00:31:44]} {[%emt 00:00:08]} f5 {[%clk 00:01:36]} {[%emt
00:01:00]} 40. exf5+ {[%clk 00:32:08]} {[%emt 00:00:05]} Kxf5 {[%clk 00:02:01]}
{[%emt 00:00:05]} 41. Rxg4 {[%clk 00:32:30]} {[%emt 00:00:08]} Rg6 {[%clk
00:00:37]} {[%emt 00:01:53]} 42. Rh5+ {[%clk 00:32:23]} {[%emt 00:00:37]} Kf6
{[%clk 00:00:54]} {[%emt 00:00:13]} 43. Rgh4 {[%clk 00:31:26]} {[%emt
00:01:27]} Rf8 {[%clk 00:00:40]} {[%emt 00:00:44]} 44. Ke4 {[%clk 00:31:24]}
{[%emt 00:00:32]} Bd6 {[%clk 00:00:32]} {[%emt 00:00:38]} 45. Rh7 {[%clk
00:31:29]} {[%emt 00:00:26]} Bb8 {[%clk 00:00:32]} {[%emt 00:00:31]} 46. Rb7
{[%clk 00:31:18]} {[%emt 00:00:40]} Kg5 {[%clk 00:00:38]} {[%emt 00:00:24]} 47.
Rg4+ {[%clk 00:30:44]} {[%emt 00:01:04]} Kh6 {[%clk 00:00:41]} {[%emt
00:00:27]} 48. Rxg6+ {[%clk 00:29:17]} {[%emt 00:01:58]} Kxg6 {[%clk 00:01:05]}
{[%emt 00:00:06]} 49. Kd5 {[%clk 00:29:21]} {[%emt 00:00:25]} Rxf3 {[%clk
00:00:56]} {[%emt 00:00:40]} 50. Rxb8 {[%clk 00:29:41]} {[%emt 00:00:10]} d3
{[%clk 00:00:52]} {[%emt 00:00:34]} 51. Ke4 {[%clk 00:30:03]} {[%emt 00:00:08]}
d2 {[%clk 00:01:05]} {[%emt 00:00:18]} 52. Rd8 {[%emt 00:00:35]} 1-0